fUST/lending_fUST_20250425
["ID","MTS","AMOUNT","RATE_DAILY","PERIOD"]
[358910063,1745543453910,-654.22460597,0.00017808,2]
[358910064,1745543453921,-500.0,0.00017808,2]
[358910065,1745543453931,-520.35310162,0.00017808,2]
[358910066,1745543453988,-11.72689838,0.00017808,2]
[358910067,1745543453998,-500.0,0.00017808,2]
[358910068,1745543454013,-1009.13,0.00018082,2]
[358910069,1745543454024,-4551.94,0.00018082,2]
[358910070,1745543454034,-842.41,0.00018082,2]
[358910071,1745543454044,-500.0,0.00018082,2]
[358910073,1745543454054,-500.0,0.00018082,2]
[358910075,1745543454064,-500.0,0.00018082,2]
[358910076,1745543454074,-500.0,0.00018082,2]
[358910077,1745543454085,-525.9,0.00018082,2]
[358910078,1745543454095,-500.0,0.00018082,2]
[358910079,1745543454105,-500.0,0.00018082,2]
[358910080,1745543454116,-500.0,0.00018082,2]
[358910081,1745543454126,-500.0,0.00018082,2]
[358910082,1745543454136,-500.0,0.00018082,2]
[358910083,1745543454146,-500.0,0.00018082,2]
[358910084,1745543454155,-500.0,0.00018082,2]
[358910085,1745543454165,-500.0,0.00018082,2]
[358910086,1745543454175,-388.93520262,0.00018082,2]
[358910087,1745543454190,-1243.06479738,0.00018082,2]
[358910088,1745543454201,-500.0,0.00018082,2]
[358910089,1745543454211,-1530.32,0.00018082,2]
[358910090,1745543454221,-500.0,0.00018082,2]
[358910091,1745543454231,-500.0,0.00018082,2]
[358910092,1745543454242,-500.0,0.00018082,2]
[358910093,1745543454251,-500.0,0.00018082,2]
[358910094,1745543454263,-500.0,0.00018082,2]
[358910095,1745543454274,-503.15,0.00018082,2]
[358910096,1745543454283,-500.0,0.00018082,2]
[358910097,1745543454293,-500.0,0.00018082,2]
[358910098,1745543454303,-500.0,0.00018082,2]
[358910099,1745543454313,-1193.02,0.00018082,2]
[358910100,1745543454323,-1168.81,0.00018082,2]
[358910101,1745543454334,-689.76,0.00018082,2]
[358910102,1745543454344,-500.0,0.00018082,2]
[358910103,1745543454354,-500.0,0.00018082,2]
[358910104,1745543454363,-500.0,0.00018082,2]
[358910105,1745543454373,-638.08,0.00018082,2]
[358910106,1745543454384,-1058.21,0.00018082,2]
[358910107,1745543454394,-500.0,0.00018082,2]
[358910108,1745543454404,-532.08,0.00018082,2]
[358910109,1745543454415,-500.0,0.00018082,2]
[358910110,1745543454424,-2500.0,0.00018082,2]
[358910111,1745543454434,-600.0,0.00018144,2]
[358910112,1745543454447,-611.1474917,0.00018172,2]
[358910113,1745543454456,-774.33683169,0.000182,2]
[358910114,1745543454466,-600.0,0.00018333,2]
[358910115,1745543454475,-308.96253064,0.00018356,2]
[358910116,1745543454485,-1009.13,0.00018356,2]
[358910117,1745543454495,-4551.94,0.00018356,2]
[358910118,1745543454506,-842.41,0.00018356,2]
[358910119,1745543454516,-500.0,0.00018356,2]
[358910120,1745543454527,-500.0,0.00018356,2]
[358910121,1745543454536,-500.0,0.00018356,2]
[358910122,1745543454546,-500.0,0.00018356,2]
[358910123,1745543454556,-525.9,0.00018356,2]
[358910124,1745543454566,-500.0,0.00018356,2]
[358910125,1745543454575,-500.0,0.00018356,2]
[358910126,1745543454586,-500.0,0.00018356,2]
[358910127,1745543454595,-500.0,0.00018356,2]
[358910128,1745543454605,-500.0,0.00018356,2]
[358910129,1745543454614,-500.0,0.00018356,2]
[358910130,1745543454625,-500.0,0.00018356,2]
[358910131,1745543454634,-500.0,0.00018356,2]
[358910132,1745543454644,-1632.0,0.00018356,2]
[358910133,1745543454654,-500.0,0.00018356,2]
[358910134,1745543454664,-1530.32,0.00018356,2]
[358910135,1745543454673,-500.0,0.00018356,2]
[358910136,1745543454683,-500.0,0.00018356,2]
[358910137,1745543454694,-500.0,0.00018356,2]
[358910138,1745543454703,-500.0,0.00018356,2]
[358910139,1745543454713,-500.0,0.00018356,2]
[358910140,1745543454724,-503.15,0.00018356,2]
[358910141,1745543454735,-500.0,0.00018356,2]
[358910142,1745543454744,-500.0,0.00018356,2]
[358910143,1745543454754,-500.0,0.00018356,2]
[358910144,1745543454763,-1193.02,0.00018356,2]
[358910145,1745543454773,-1168.81,0.00018356,2]
[358910146,1745543454782,-689.76,0.00018356,2]
[358910147,1745543454792,-500.0,0.00018356,2]
[358910148,1745543454802,-547.43814146,0.00018356,2]
[358910149,1745543454811,-500.0,0.00018356,2]
[358910150,1745543454821,-638.08,0.00018356,2]
[358910151,1745543454831,-1058.21,0.00018356,2]
[358910152,1745543454843,-500.0,0.00018356,2]
[358910153,1745543454855,-532.08,0.00018356,2]
[358910154,1745543454864,-500.0,0.00018356,2]
[358910155,1745543454875,-5000.0,0.00018369,2]
[358910156,1745543454886,-179.9640072,0.00018488,2]
[358910157,1745543454895,-3000.0,0.00018493,2]
[358910158,1745543454905,-780.54594149,0.00018522,2]
[358910159,1745543454914,-500.0,0.0001863,2]
[358910160,1745543454925,-500.0,0.0001863,2]
[358910161,1745543454935,-695.81,0.0001863,2]
[358910162,1745543454947,-609.61,0.0001863,2]
[358910163,1745543454956,-500.0,0.0001863,2]
[358910164,1745543454966,-500.0,0.0001863,2]
[358910166,1745543454976,-500.0,0.0001863,2]
[358910168,1745543454985,-500.0,0.0001863,2]
[358910169,1745543454995,-500.0,0.0001863,2]
[358910172,1745543455005,-819.16,0.0001863,2]
[358910173,1745543455018,-500.0,0.0001863,2]
[358910175,1745543455028,-512.49,0.0001863,2]
[358910177,1745543455037,-734.12,0.0001863,2]
[358910178,1745543455047,-500.0,0.0001863,2]
[358910179,1745543455057,-500.0,0.0001863,2]
[358910180,1745543455066,-500.0,0.0001863,2]
[358910181,1745543455076,-500.0,0.0001863,2]
[358910182,1745543455085,-500.0,0.0001863,2]
[358910189,1745543455279,-500.0,0.0001863,2]
[358910191,1745543455290,-776.48,0.0001863,2]
[358910192,1745543455301,-589.73,0.0001863,2]
[358910195,1745543455312,-500.0,0.0001863,2]
[358910196,1745543455322,-500.0,0.0001863,2]
[358910198,1745543455331,-530.88,0.0001863,2]
[358910200,1745543455341,-500.0,0.0001863,2]
[358910201,1745543455351,-500.0,0.0001863,2]
[358910202,1745543455361,-1219.24,0.0001863,2]
[358910203,1745543455371,-500.0,0.0001863,2]
[358910204,1745543455380,-832.0,0.0001863,2]
[358910205,1745543455390,-500.0,0.0001863,2]
[358910206,1745543455400,-500.0,0.0001863,2]
[358910207,1745543455410,-754.68,0.0001863,2]
[358910208,1745543455419,-500.0,0.0001863,2]
[358910209,1745543455429,-500.0,0.0001863,2]
[358910210,1745543455440,-500.0,0.0001863,2]
[358910211,1745543455450,-640.85,0.0001863,2]
[358910212,1745543455459,-5064.79,0.0001863,2]
[358910213,1745543455468,-500.0,0.0001863,2]
[358910214,1745543455478,-603.16,0.0001863,2]
[358910215,1745543455488,-500.0,0.0001863,2]
[358910216,1745543455499,-1805.43,0.0001863,2]
[358910217,1745543455509,-500.0,0.0001863,2]
[358910218,1745543455518,-1403.65,0.0001863,2]
[358910219,1745543455528,-3983.28,0.0001863,2]
[358910220,1745543455538,-1671.18,0.0001863,2]
[358910221,1745543455547,-556.77,0.0001863,2]
[358910222,1745543455557,-500.26,0.0001863,2]
[358910223,1745543455567,-500.0,0.0001863,2]
[358910224,1745543455577,-1009.13,0.0001863,2]
[358910225,1745543455587,-1291.41951822,0.0001863,2]
[358910226,1745543455725,-366.45182833,0.00016438,2]
[358910227,1745543456671,-920.13817167,0.00016438,2]
[358910228,1745543456681,-1286.59,0.00016712,2]
[358910229,1745543456692,-1286.59,0.00016986,2]
[358910230,1745543456702,-1286.59,0.0001726,2]
[358910231,1745543456712,-3260.52048178,0.0001863,2]
[358910232,1745543456721,-842.41,0.0001863,2]
[358910233,1745543456731,-500.0,0.0001863,2]
[358910234,1745543456742,-500.0,0.0001863,2]
[358910235,1745543456752,-500.0,0.0001863,2]
[358910236,1745543456761,-500.0,0.0001863,2]
[358910237,1745543456771,-500.0,0.0001863,2]
[358910238,1745543456781,-525.9,0.0001863,2]
[358910239,1745543456790,-500.0,0.0001863,2]
[358910240,1745543456800,-500.0,0.0001863,2]
[358910241,1745543456809,-500.0,0.0001863,2]
[358910242,1745543456820,-500.0,0.0001863,2]
[358910243,1745543456829,-500.0,0.0001863,2]
[358910244,1745543456840,-500.0,0.0001863,2]
[358910245,1745543456852,-493.73700364,0.0001863,2]
[358910246,1745543456861,-1632.0,0.0001863,2]
[358910247,1745543456871,-500.0,0.0001863,2]
[358910248,1745543456881,-1530.32,0.0001863,2]
[358910249,1745543456892,-500.0,0.0001863,2]
[358910250,1745543456902,-500.0,0.0001863,2]
[358910251,1745543456911,-500.0,0.0001863,2]
[358910252,1745543456922,-500.0,0.0001863,2]
[358910253,1745543456932,-500.0,0.0001863,2]
[358910254,1745543456943,-503.15,0.0001863,2]
[358910255,1745543456953,-500.0,0.0001863,2]
[358910256,1745543456962,-500.0,0.0001863,2]
[358910257,1745543456972,-500.0,0.0001863,2]
[358910258,1745543456981,-1193.02,0.0001863,2]
[358910259,1745543456991,-1168.81,0.0001863,2]
[358910260,1745543457001,-689.76,0.0001863,2]
[358910261,1745543457011,-500.0,0.0001863,2]
[358910262,1745543457020,-500.0,0.0001863,2]
[358910263,1745543457030,-638.08,0.0001863,2]
[358910264,1745543457041,-1058.21,0.0001863,2]
[358910265,1745543457051,-500.0,0.0001863,2]
[358910266,1745543457061,-532.08,0.0001863,2]
[358910267,1745543457071,-500.0,0.0001863,2]
[358910268,1745543457081,-774.33683156,0.00018693,2]
[358910269,1745543457091,-500.0,0.00018873,2]
[358910270,1745543457100,-500.0,0.00018873,2]
[358910271,1745543457110,-500.0,0.00018873,2]
[358910272,1745543457120,-500.0,0.00018873,2]
[358910273,1745543457129,-500.0,0.00018873,2]
[358910274,1745543457139,-500.0,0.00018873,2]
[358910275,1745543457148,-500.0,0.00018873,2]
[358910276,1745543457158,-500.0,0.00018873,2]
[358910277,1745543457167,-505.65113474,0.00018873,2]
[358910278,1745543457177,-500.0,0.00018873,2]
[358910279,1745543457186,-505.83778537,0.00018873,2]
[358910280,1745543457198,-500.0,0.00018873,2]
[358910281,1745543457207,-76834.26157832,0.000189,2]
[358910282,1745543457574,-500.0,0.00016438,2]
[358910283,1745543457583,-1286.59,0.00017534,2]
[358910284,1745543457593,-1286.59,0.00017808,2]
[358910285,1745543457602,-1286.59,0.00018082,2]
[358910286,1745543457611,-485.62638205,0.00018356,2]
[358910287,1745543457683,-800.96361795,0.00018356,2]
[358910288,1745543457695,-1286.59,0.0001863,2]
[358910289,1745543457705,-12805.00887105,0.000189,2]
[358910290,1745543457728,-2355.607073,0.000189,2]
[358910291,1745543457740,-37118.63574751,0.000189,2]
[358910292,1745543457756,-500.0,0.00016712,2]
[358910293,1745543457766,-6612.01968147,0.000189,2]
[358910294,1745543458948,-33342.66525,0.000189,2]
[358910295,1745543458960,-3025.18492575,0.000189,2]
[358910296,1745543583054,373.75,0.00024,120]
[358910297,1745543703155,6178.2523,0.00018,30]
[358910298,1745543750964,5000.0,0.00025,30]
[358910300,1745543891767,563.0,0.00025,30]
[358910304,1745544015033,200.0,0.00025,30]
[358910305,1745544057257,-173.884901,0.00015246,2]
[358910306,1745544057284,-500.0,0.00016049,2]
[358910307,1745544057309,-500.0,0.00016049,2]
[358910308,1745544057333,-500.0,0.00016049,2]
[358910309,1745544057367,-500.0,0.00016049,2]
[358910310,1745544057393,-500.0,0.00016049,2]
[358910311,1745544057425,-500.0,0.00016049,2]
[358910312,1745544057450,-500.0,0.00016049,2]
[358910313,1745544057474,-500.0,0.00016049,2]
[358910314,1745544057507,-500.0,0.00016049,2]
[358910315,1745544057531,-500.0,0.00016049,2]
[358910316,1745544057563,-500.0,0.00016049,2]
[358910317,1745544057589,-500.0,0.00016049,2]
[358910318,1745544057612,-255.41940893,0.00016049,2]
[358910319,1745544057646,-500.0,0.00016049,2]
[358910320,1745544057671,-500.0,0.00016049,2]
[358910321,1745544057697,-553.68394404,0.00016049,2]
[358910322,1745544057921,-500.0,0.00016049,2]
[358910323,1745544057949,-500.0,0.00016049,2]
[358910324,1745544057981,-500.0,0.00016049,2]
[358910325,1745544058005,-500.0,0.00016049,2]
[358910326,1745544058038,-500.0,0.00016049,2]
[358910327,1745544058061,-500.0,0.00016049,2]
[358910328,1745544058093,-500.0,0.00016049,2]
[358910329,1745544058116,-500.0,0.00016049,2]
[358910330,1745544058139,-500.0,0.00016049,2]
[358910331,1745544058170,-500.0,0.00016049,2]
[358910332,1745544058193,-500.0,0.00016049,2]
[358910333,1745544058224,-500.0,0.00016049,2]
[358910334,1745544058246,-500.0,0.00016049,2]
[358910335,1745544058269,-500.0,0.00016049,2]
[358910336,1745544058300,-500.0,0.00016049,2]
[358910337,1745544058332,-500.0,0.00016049,2]
[358910338,1745544058356,-500.0,0.00016049,2]
[358910339,1745544058380,-500.0,0.00016049,2]
[358910340,1745544058405,-500.0,0.00016049,2]
[358910341,1745544058443,-500.0,0.00016049,2]
[358910342,1745544058469,-500.0,0.00016049,2]
[358910343,1745544058503,-500.0,0.00016049,2]
[358910344,1745544058527,-500.0,0.00016049,2]
[358910345,1745544058560,-500.0,0.00016049,2]
[358910346,1745544058584,-500.0,0.00016049,2]
[358910347,1745544058607,-500.0,0.00016049,2]
[358910348,1745544058639,-500.0,0.00016049,2]
[358910349,1745544058662,-500.0,0.00016049,2]
[358910350,1745544058694,-500.0,0.00016049,2]
[358910351,1745544058725,-500.0,0.00016049,2]
[358910352,1745544058749,-500.0,0.00016049,2]
[358910353,1745544058771,-402.15347591,0.00016049,2]
[358910354,1745544058803,-500.0,0.00016049,2]
[358910355,1745544058832,-503.05222565,0.00016049,2]
[358910356,1745544058861,-111.80604447,0.00016049,2]
[358910366,1745544499450,1489.56442766,0.000125,2]
[358910397,1745544631942,-479.68206278,0.0001516,7]
[358910399,1745544631953,-160.0,0.00015907,2]
[358910401,1745544631963,-300.0,0.00015997,2]
[358910403,1745544631972,-1200.0,0.00015997,2]
[358910404,1745544631983,-195.04660099,0.00015998,2]
[358910405,1745544631993,-500.0,0.00015998,2]
[358910406,1745544632003,-172.63154934,0.00015998,2]
[358910407,1745544632013,-500.0,0.00015998,2]
[358910408,1745544632023,-500.0,0.00015998,2]
[358910410,1745544632033,-500.0,0.00015998,2]
[358910412,1745544632042,-500.0,0.00015998,2]
[358910414,1745544632056,-500.0,0.00015998,2]
[358910415,1745544632065,-500.0,0.00015998,2]
[358910416,1745544632074,-232.56757563,0.00015998,2]
[358910417,1745544632084,-3112.13101752,0.00016,2]
[358910418,1745544632094,-1170.0,0.00016,2]
[358910419,1745544632103,-1513.0,0.00016,2]
[358910420,1745544632114,-822.0,0.00016,2]
[358910421,1745544632123,-303.43263409,0.00016053,2]
[358910422,1745544632133,-1000.0,0.00016056,2]
[358910423,1745544632143,-205.48685486,0.00016173,2]
[358910424,1745544632151,-408.48829385,0.00016173,2]
[358910425,1745544632161,-5000.0,0.000162,2]
[358910426,1745544632170,-845.23,0.00016228,3]
[358910427,1745544632180,-46997.6781763,0.00016238,2]
[358910428,1745544632193,-33115.25500444,0.00016238,2]
[358910447,1745544638010,-27475.70582109,0.00016238,2]
[358910450,1745544638023,-15074.56858948,0.00016238,2]
[358910452,1745544638035,-946.37722602,0.00016238,2]
[358910454,1745544638047,-4992.65182126,0.00016238,2]
[358910461,1745544638102,-399.82719863,0.00016238,2]
[358910463,1745544638114,-16962.79714532,0.00016238,2]
[358910478,1745544640449,-482.02195921,0.00016238,2]
[358910479,1745544640463,-2624.45810116,0.00016238,2]
[358910480,1745544640475,-791.3323053,0.00016238,2]
[358910481,1745544640486,-441.18502434,0.00016238,2]
[358910482,1745544640498,-1832.95376476,0.00016238,2]
[358910483,1745544640510,-760.70198306,0.00016238,2]
[358910484,1745544640521,-1579.16153989,0.00016238,2]
[358910485,1745544640534,-1070.11454301,0.00016238,2]
[358910486,1745544640546,-2831.00242222,0.00016238,2]
[358910487,1745544640556,-431.78433194,0.00016273,2]
[358910488,1745544640566,-376.82443631,0.00016273,2]
[358910489,1745544640575,-500.0,0.00016438,2]
[358910490,1745544640586,-500.0,0.00016438,2]
[358910491,1745544640595,-511.98,0.00016438,2]
[358910492,1745544640605,-500.0,0.00016438,2]
[358910493,1745544640615,-500.0,0.00016438,2]
[358910494,1745544640625,-500.0,0.00016438,2]
[358910495,1745544640634,-500.0,0.00016438,2]
[358910496,1745544640643,-151.93674244,0.00016438,2]
[358910497,1745544640655,-522.97676254,0.00016438,2]
[358910498,1745544640664,-500.0,0.00016438,2]
[358910499,1745544640674,-500.0,0.00016438,2]
[358910500,1745544640687,-500.0,0.00016438,2]
[358910501,1745544640696,-500.0,0.00016438,2]
[358910502,1745544640705,-500.0,0.00016438,2]
[358910503,1745544640715,-642.49,0.00016438,2]
[358910504,1745544640727,-500.0,0.00016438,2]
[358910505,1745544640736,-500.0,0.00016438,2]
[358910506,1745544640745,-500.0,0.00016438,2]
[358910507,1745544640755,-500.0,0.00016438,2]
[358910508,1745544640766,-500.0,0.00016438,2]
[358910509,1745544640776,-500.0,0.00016438,2]
[358910510,1745544640785,-500.0,0.00016438,2]
[358910511,1745544640795,-500.0,0.00016438,2]
[358910512,1745544640805,-500.0,0.00016438,2]
[358910513,1745544640814,-500.0,0.00016438,2]
[358910514,1745544640823,-500.0,0.00016438,2]
[358910515,1745544640832,-500.0,0.00016438,2]
[358910516,1745544640841,-500.0,0.00016438,2]
[358910517,1745544640851,-500.0,0.00016438,2]
[358910518,1745544640861,-500.0,0.00016438,2]
[358910519,1745544640871,-500.0,0.00016438,2]
[358910520,1745544640881,-500.0,0.00016438,2]
[358910521,1745544640890,-500.0,0.00016438,2]
[358910522,1745544640902,-568.71979458,0.00016438,2]
[358910523,1745544640911,-500.0,0.00016438,2]
[358910524,1745544640921,-500.0,0.00016438,2]
[358910525,1745544640931,-500.0,0.00016438,2]
[358910526,1745544640940,-317.44127095,0.00016438,2]
[358910527,1745544640949,-500.0,0.00016438,2]
[358910528,1745544640958,-506.65,0.00016438,2]
[358910529,1745544640968,-500.0,0.00016438,2]
[358910530,1745544640977,-500.0,0.00016438,2]
[358910531,1745544640988,-500.0,0.00016438,2]
[358910532,1745544641000,-500.0,0.00016438,2]
[358910533,1745544641009,-500.0,0.00016438,2]
[358910534,1745544641019,-762.03,0.00016438,2]
[358910535,1745544641030,-500.0,0.00016438,2]
[358910536,1745544641040,-520.0,0.00016438,2]
[358910537,1745544641050,-500.0,0.00016438,2]
[358910538,1745544641060,-500.0,0.00016438,2]
[358910539,1745544641069,-512.28420454,0.00016438,2]
[358910540,1745544641079,-500.0,0.00016438,2]
[358910541,1745544641089,-500.0,0.00016438,2]
[358910542,1745544641098,-500.0,0.00016438,2]
[358910543,1745544641121,-1128.39,0.00016438,2]
[358910544,1745544641130,-500.0,0.00016438,2]
[358910545,1745544641139,-500.0,0.00016438,2]
[358910546,1745544641148,-500.0,0.00016438,2]
[358910547,1745544641159,-877.28,0.00016438,2]
[358910548,1745544641169,-500.0,0.00016438,2]
[358910549,1745544641178,-500.0,0.00016438,2]
[358910550,1745544641188,-2118.29,0.00016438,2]
[358910551,1745544641197,-1044.49,0.00016438,2]
[358910552,1745544641206,-2489.55,0.00016438,2]
[358910553,1745544641216,-500.0,0.00016438,2]
[358910554,1745544641226,-804.12,0.00016438,2]
[358910555,1745544641235,-1072.57,0.00016438,2]
[358910556,1745544641245,-500.0,0.00016438,2]
[358910557,1745544641254,-500.0,0.00016438,2]
[358910558,1745544641264,-500.0,0.00016438,2]
[358910559,1745544641273,-3002.5,0.00016438,2]
[358910560,1745544641466,-500.0,0.00016438,2]
[358910561,1745544641479,-500.0,0.00016438,2]
[358910562,1745544641489,-500.0,0.00016438,2]
[358910563,1745544641499,-500.0,0.00016438,2]
[358910564,1745544641508,-500.0,0.00016438,2]
[358910565,1745544641518,-500.0,0.00016438,2]
[358910566,1745544641527,-500.0,0.00016438,2]
[358910567,1745544641537,-500.0,0.00016438,2]
[358910568,1745544641547,-500.0,0.00016438,2]
[358910569,1745544641557,-500.0,0.00016438,2]
[358910570,1745544641566,-500.0,0.00016438,2]
[358910571,1745544641575,-284.42642778,0.00016438,2]
[358910572,1745544641586,-500.0,0.00016438,2]
[358910573,1745544641596,-528.17,0.00016438,2]
[358910574,1745544641605,-500.0,0.00016438,2]
[358910575,1745544641614,-769.58,0.00016438,2]
[358910576,1745544641624,-2844.96,0.00016438,2]
[358910577,1745544641634,-500.0,0.00016438,2]
[358910578,1745544641643,-500.0,0.00016438,2]
[358910579,1745544641653,-500.0,0.00016438,2]
[358910580,1745544641663,-526.51,0.00016438,2]
[358910581,1745544641672,-500.0,0.00016438,2]
[358910582,1745544641684,-500.0,0.00016438,2]
[358910583,1745544641695,-500.0,0.00016438,2]
[358910584,1745544641704,-583.4,0.00016438,2]
[358910585,1745544641714,-500.0,0.00016438,2]
[358910586,1745544641725,-1020.0,0.00016438,2]
[358910587,1745544641734,-500.0,0.00016438,2]
[358910588,1745544641743,-500.0,0.00016438,2]
[358910589,1745544641752,-500.0,0.00016438,2]
[358910590,1745544641764,-500.0,0.00016438,2]
[358910591,1745544641773,-500.0,0.00016438,2]
[358910592,1745544641782,-500.0,0.00016438,2]
[358910593,1745544641791,-500.0,0.00016438,2]
[358910594,1745544641800,-500.0,0.00016438,2]
[358910595,1745544641810,-360.74601502,0.00016438,2]
[358910596,1745544641819,-500.0,0.00016438,2]
[358910597,1745544641828,-500.0,0.00016438,2]
[358910598,1745544641838,-956.45,0.00016438,2]
[358910599,1745544641847,-1067.57,0.00016438,2]
[358910600,1745544641857,-500.0,0.00016438,2]
[358910601,1745544641866,-500.0,0.00016438,2]
[358910602,1745544641876,-791.15,0.00016438,2]
[358910603,1745544641886,-500.0,0.00016438,2]
[358910604,1745544641895,-500.0,0.00016438,2]
[358910605,1745544641905,-500.0,0.00016438,2]
[358910606,1745544641914,-661.38,0.00016438,2]
[358910607,1745544641923,-745.64,0.00016438,2]
[358910608,1745544641933,-500.0,0.00016438,2]
[358910609,1745544641942,-500.0,0.00016438,2]
[358910610,1745544641952,-500.0,0.00016438,2]
[358910611,1745544641963,-500.0,0.00016438,2]
[358910612,1745544641972,-500.0,0.00016438,2]
[358910613,1745544641982,-500.0,0.00016438,2]
[358910614,1745544641991,-3213.75,0.00016438,2]
[358910615,1745544642000,-500.0,0.00016438,2]
[358910616,1745544642009,-500.0,0.00016438,2]
[358910617,1745544642019,-500.0,0.00016438,2]
[358910618,1745544642028,-500.0,0.00016473,2]
[358910619,1745544642037,-500.0,0.00016473,2]
[358910620,1745544642047,-500.0,0.00016473,2]
[358910621,1745544642058,-500.0,0.00016473,2]
[358910622,1745544642069,-500.0,0.00016473,2]
[358910623,1745544642079,-500.0,0.00016473,2]
[358910624,1745544642089,-500.0,0.00016473,2]
[358910625,1745544642098,-500.0,0.00016473,2]
[358910626,1745544642108,-500.0,0.00016473,2]
[358910627,1745544642119,-500.0,0.00016473,2]
[358910628,1745544642130,-500.0,0.00016473,2]
[358910629,1745544642140,-160.0,0.00016641,2]
[358910630,1745544642150,-160.0,0.00016641,2]
[358910631,1745544642160,-840.0731918,0.00016641,2]
[358910632,1745544642170,-160.0,0.00016641,2]
[358910633,1745544642179,-160.0,0.00016641,2]
[358910634,1745544642188,-9089.53238255,0.00016641,2]
[358910671,1745544643264,-332.23196082,0.00015997,2]
[358910672,1745544643275,-512.51884477,0.00015998,2]
[358910673,1745544643285,-561.79823126,0.00016164,2]
[358910674,1745544643295,-500.0,0.00016438,2]
[358910675,1745544643307,-3486.96248267,0.00016641,2]
[358910676,1745544643316,-420.89490186,0.00016641,2]
[358910677,1745544643326,-511.98,0.00016712,2]
[358910678,1745544643335,-500.0,0.00016712,2]
[358910679,1745544643344,-500.0,0.00016712,2]
[358910680,1745544643354,-500.0,0.00016712,2]
[358910681,1745544643365,-500.0,0.00016712,2]
[358910682,1745544643375,-500.0,0.00016712,2]
[358910683,1745544643385,-500.0,0.00016712,2]
[358910684,1745544643394,-500.0,0.00016712,2]
[358910685,1745544643404,-500.0,0.00016712,2]
[358910686,1745544643413,-500.0,0.00016712,2]
[358910687,1745544643422,-500.0,0.00016712,2]
[358910688,1745544643432,-500.0,0.00016712,2]
[358910689,1745544643441,-500.0,0.00016712,2]
[358910690,1745544643451,-183.95189993,0.00016712,2]
[358910691,1745544643461,-500.0,0.00016712,2]
[358910692,1745544643471,-500.0,0.00016712,2]
[358910693,1745544643481,-500.0,0.00016712,2]
[358910694,1745544643490,-500.0,0.00016712,2]
[358910695,1745544643500,-500.0,0.00016712,2]
[358910696,1745544643509,-500.0,0.00016712,2]
[358910697,1745544643519,-500.0,0.00016712,2]
[358910698,1745544643529,-500.0,0.00016712,2]
[358910699,1745544643538,-500.0,0.00016712,2]
[358910700,1745544643548,-500.0,0.00016712,2]
[358910701,1745544643557,-340.8895217,0.00016712,2]
[358910702,1745544643567,-762.03,0.00016712,2]
[358910703,1745544643577,-500.0,0.00016712,2]
[358910704,1745544643587,-520.0,0.00016712,2]
[358910705,1745544643597,-500.0,0.00016712,2]
[358910706,1745544643606,-500.0,0.00016712,2]
[358910707,1745544643615,-457.37712923,0.00016712,2]
[358910708,1745544643625,-1128.39,0.00016712,2]
[358910709,1745544643636,-500.0,0.00016712,2]